fUSD/lending_fUSD_20241222
["ID","MTS","AMOUNT","RATE_DAILY","PERIOD"]
[346302265,1734880249735,-500.0,0.00019726,2]
[346302266,1734880249744,-4344.54,0.00019726,2]
[346302267,1734880249754,-647.8,0.00019726,2]
[346302268,1734880249765,-82104.88,0.00019726,2]
[346302269,1734880249775,-1628.64,0.00019726,2]
[346302270,1734880249786,-500.0,0.00019726,2]
[346302271,1734880249796,-500.0,0.00019726,2]
[346302272,1734880249805,-759.7,0.00019726,2]
[346302273,1734880249816,-8535.31,0.00019726,2]
[346302274,1734880249826,-1170.26,0.00019726,2]
[346302275,1734880249836,-2923.14,0.00019726,2]
[346302276,1734880249846,-500.0,0.00019726,2]
[346302277,1734880249855,-1667.66,0.00019726,2]
[346302278,1734880249865,-500.0,0.00019726,2]
[346302279,1734880249876,-797.68,0.00019726,2]
[346302280,1734880249886,-500.0,0.00019726,2]
[346302281,1734880249895,-752.5,0.00019726,2]
[346302282,1734880249905,-6107.43,0.00019726,2]
[346302283,1734880249915,-684.04,0.00019726,2]
[346302284,1734880249925,-925.98,0.00019726,2]
[346302285,1734880249935,-833.37,0.00019726,2]
[346302286,1734880249944,-3268.98,0.00019726,2]
[346302287,1734880249954,-192.78,0.00019726,2]
[346302288,1734880249963,-751.3,0.00019726,2]
[346302289,1734880249973,-1334.75,0.00019726,2]
[346302290,1734880249983,-605.61,0.00019726,2]
[346302291,1734880249993,-23241.57,0.00019726,2]
[346302292,1734880250003,-1401.76,0.00019726,2]
[346302293,1734880250013,-500.0,0.00019726,2]
[346302294,1734880250023,-895.54,0.00019726,2]
[346302295,1734880250033,-500.0,0.00019726,2]
[346302296,1734880250043,-500.0,0.00019726,2]
[346302297,1734880250052,-643.78,0.00019726,2]
[346302298,1734880250062,-500.0,0.00019726,2]
[346302299,1734880250072,-8966.33,0.00019726,2]
[346302300,1734880250082,-580.63,0.00019726,2]
[346302301,1734880250092,-500.0,0.00019726,2]
[346302302,1734880250102,-1045.49,0.00019726,2]
[346302303,1734880250111,-1487.85,0.00019726,2]
[346302304,1734880250121,-500.0,0.00019726,2]
[346302305,1734880250131,-701.99,0.00019726,2]
[346302306,1734880250142,-500.0,0.00019726,2]
[346302307,1734880250152,-5482.21,0.00019726,2]
[346302308,1734880250162,-2378.88,0.00019726,2]
[346302309,1734880250171,-665.83,0.00019726,2]
[346302310,1734880250181,-21889.45,0.00019726,2]
[346302311,1734880250190,-638.42,0.00019726,2]
[346302312,1734880250200,-500.0,0.00019726,2]
[346302313,1734880250209,-500.0,0.00019726,2]
[346302314,1734880250219,-8317.57,0.00019726,2]
[346302315,1734880250228,-619.14,0.00019726,2]
[346302316,1734880250237,-2612.15,0.00019726,2]
[346302317,1734880250247,-857.43,0.00019726,2]
[346302318,1734880250256,-2012.48,0.00019726,2]
[346302319,1734880250266,-466.63508302,0.00019726,2]
[346302320,1734880250276,-1440.53,0.00019726,2]
[346302321,1734880250285,-778.65,0.00019726,2]
[346302322,1734880250294,-4508.61,0.00019726,2]
[346302323,1734880250304,-8368.61,0.00019726,2]
[346302324,1734880250314,-500.0,0.00019726,2]
[346302325,1734880250323,-29064.2,0.00019726,2]
[346302326,1734880250332,-500.0,0.00019726,2]
[346302327,1734880250342,-30827.32,0.00019726,2]
[346302328,1734880250352,-500.0,0.00019726,2]
[346302329,1734880250361,-4578.26,0.00019726,2]
[346302330,1734880250371,-500.0,0.00019726,2]
[346302331,1734880250380,-5540.24,0.00019726,2]
[346302332,1734880250392,-500.0,0.00019726,2]
[346302333,1734880250402,-801.02,0.00019726,2]
[346302334,1734880250412,-1651.11,0.00019726,2]
[346302335,1734880250422,-1586.0,0.00019726,2]
[346302336,1734880250433,-815.76,0.00019726,2]
[346302337,1734880250442,-500.0,0.00019726,2]
[346302338,1734880250452,-1111.69,0.00019726,2]
[346302339,1734880250463,-1021.38,0.00019726,2]
[346302340,1734880250472,-1500.0,0.00019727,2]
[346302341,1734880250482,-150.0,0.00019727,2]
[346302342,1734880250491,-150.0,0.0001973,2]
[346302343,1734880250500,-150.0,0.00019736,2]
[346302344,1734880250513,-150.0,0.00019738,2]
[346302345,1734880250522,-150.0,0.00019738,2]
[346302346,1734880250531,-150.0,0.00019742,2]
[346302347,1734880250540,-300.0,0.00019743,2]
[346302348,1734880250550,-150.0,0.00019745,2]
[346302349,1734880250559,-150.0,0.00019751,2]
[346302350,1734880250568,-150.0,0.00019752,2]
[346302351,1734880250578,-150.0,0.00019755,2]
[346302352,1734880250587,-150.0,0.0001976,2]
[346302353,1734880250596,-150.0,0.0001976,2]
[346302354,1734880250605,-150.0,0.00019762,2]
[346302355,1734880250615,-150.0,0.00019763,2]
[346302356,1734880250624,-150.0,0.00019764,2]
[346302357,1734880250633,-150.0,0.00019765,2]
[346302358,1734880250642,-150.0,0.00019765,2]
[346302359,1734880250653,-150.0,0.00019766,2]
[346302360,1734880250663,-150.0,0.00019766,2]
[346302361,1734880250833,-165.48550035,0.00019773,2]
[346302362,1734880250845,-500.0,0.00019773,2]
[346302363,1734880250854,-509.23929976,0.00019773,2]
[346302364,1734880250864,-406.94541668,0.00019773,2]
[346302365,1734880250873,-500.0,0.00019773,2]
[346302366,1734880250882,-204.00476163,0.00019773,2]
[346302367,1734880250892,-258.11696341,0.00019773,2]
[346302368,1734880250901,-500.0,0.00019773,2]
[346302369,1734880250911,-356.50210057,0.00019773,2]
[346302370,1734880250920,-260.03028348,0.00019773,2]
[346302371,1734880250929,-323.78760875,0.00019773,2]
[346302372,1734880250939,-1500.0,0.00019776,2]
[346302373,1734880250948,-150.0,0.0001978,2]
[346302374,1734880250958,-150.0,0.00019781,2]
[346302375,1734880250967,-150.0,0.00019782,2]
[346302376,1734880250977,-1500.0,0.00019784,2]
[346302377,1734880250987,-150.0,0.00019785,2]
[346302378,1734880250996,-150.0,0.00019785,2]
[346302379,1734880251006,-150.0,0.00019786,2]
[346302380,1734880251016,-150.0,0.00019786,2]
[346302381,1734880251027,-150.0,0.00019789,2]
[346302382,1734880251036,-150.0,0.0001979,2]
[346302383,1734880251045,-150.0,0.00019791,2]
[346302384,1734880251054,-150.0,0.00019791,2]
[346302385,1734880251064,-150.0,0.00019793,2]
[346302386,1734880251073,-150.0,0.00019797,2]
[346302387,1734880251082,-150.0,0.00019798,2]
[346302388,1734880251093,-150.0,0.00019798,2]
[346302389,1734880251102,-150.0,0.00019799,2]
[346302390,1734880251111,-24401.304037,0.000198,2]
[346302391,1734880251120,-24401.304037,0.000198,2]
[346302392,1734880251130,-24401.304037,0.000198,2]
[346302393,1734880251139,-24401.304037,0.000198,2]
[346302394,1734880251148,-24401.304037,0.000198,2]
[346302395,1734880251157,-24401.304037,0.000198,2]
[346302396,1734880251166,-24401.304037,0.000198,2]
[346302397,1734880251176,-24401.304037,0.000198,2]
[346302398,1734880251186,-24401.304037,0.000198,2]
[346302399,1734880251195,-24401.304037,0.000198,2]
[346302400,1734880251205,-24401.304037,0.000198,2]
[346302401,1734880251214,-24401.304037,0.000198,2]
[346302402,1734880251224,-220713.6874189,0.000198,2]
[346302403,1734880251233,-24401.304037,0.000198,2]
[346302404,1734880251243,-24401.304037,0.000198,2]
[346302405,1734880251252,-24401.304037,0.000198,2]
[346302406,1734880251261,-24401.304037,0.000198,2]
[346302407,1734880251271,-24401.304037,0.000198,2]
[346302408,1734880251280,-24401.304037,0.000198,2]
[346302409,1734880251290,-24401.304037,0.000198,2]
[346302410,1734880251299,-24401.304037,0.000198,2]
[346302411,1734880251308,-24401.304037,0.000198,2]
[346302412,1734880251317,-24401.304037,0.000198,2]
[346302413,1734880251327,-150.0,0.00019801,2]
[346302414,1734880251337,-3954.55982033,0.00019805,2]
[346302415,1734880251346,-150.0,0.00019805,2]
[346302416,1734880251356,-150.0,0.00019806,2]
[346302417,1734880251366,-1500.0,0.00019808,2]
[346302418,1734880251375,-1167.42,0.00019809,2]
[346302419,1734880251387,-5507.33390482,0.00019809,2]
[346302420,1734880251396,-150.0,0.00019809,2]
[346302421,1734880251406,-21535.84535702,0.0001981,2]
[346302422,1734880251415,-300.0,0.0001981,2]
[346302423,1734880251425,-150.0,0.0001981,2]
[346302424,1734880251436,-150.0,0.00019811,2]
[346302425,1734880251445,-150.0,0.00019812,2]
[346302426,1734880251456,-150.0,0.00019813,2]
[346302427,1734880251466,-150.0,0.00019815,2]
[346302428,1734880251475,-150.0,0.00019819,2]
[346302429,1734880251484,-150.0,0.00019822,2]
[346302430,1734880251493,-150.0,0.00019824,2]
[346302431,1734880251504,-150.0,0.00019827,2]
[346302432,1734880251513,-1500.0,0.00019832,2]
[346302433,1734880251524,-150.0,0.00019834,2]
[346302434,1734880251534,-150.0,0.00019836,2]
[346302435,1734880251543,-150.0,0.00019836,2]
[346302436,1734880251553,-423.07399393,0.00019837,2]
[346302437,1734880251562,-150.0,0.00019838,2]
[346302438,1734880251572,-500.0,0.00019839,2]
[346302439,1734880251581,-500.0,0.0001984,2]
[346302440,1734880251591,-500.0,0.0001984,2]
[346302441,1734880251600,-2000.0,0.0001984,2]
[346302442,1734880251610,-500.0,0.0001984,2]
[346302443,1734880251619,-500.0,0.0001984,2]
[346302444,1734880251629,-200.0,0.0001984,2]
[346302445,1734880251638,-150.0,0.00019841,2]
[346302446,1734880251650,-150.0,0.00019842,2]
[346302447,1734880251661,-150.0,0.00019844,2]
[346302448,1734880251671,-150.0,0.00019846,2]
[346302449,1734880251680,-1500.0,0.00019849,2]
[346302450,1734880251691,-150.0,0.00019851,2]
[346302451,1734880251701,-150.0,0.00019854,2]
[346302452,1734880251711,-150.0,0.00019857,2]
[346302453,1734880251721,-150.0,0.00019857,2]
[346302454,1734880251730,-150.0,0.00019859,2]
[346302455,1734880251741,-150.0,0.00019863,2]
[346302456,1734880251751,-150.0,0.00019865,2]
[346302457,1734880251761,-150.0,0.00019876,2]
[346302458,1734880251771,-3888.779,0.00019878,2]
[346302459,1734880251782,-198.765,0.00019878,2]
[346302460,1734880251792,-150.0,0.00019883,2]
[346302461,1734880251802,-150.0,0.00019887,2]
[346302462,1734880251811,-150.0,0.00019889,2]
[346302463,1734880251820,-150.0,0.00019892,2]
[346302464,1734880251829,-369.72210273,0.00019899,2]
[346302465,1734880251840,-369.72210271,0.000199,2]
[346302466,1734880251850,-6912.83175333,0.000199,2]
[346302467,1734880251860,-3954.55982033,0.000199,2]
[346302468,1734880251869,-5507.33390482,0.000199,2]
[346302469,1734880251878,-324.40277758,0.000199,2]
[346302470,1734880251887,-391.71796702,0.000199,2]
[346302471,1734880251896,-391.71796702,0.000199,2]
[346302472,1734880251905,-391.71796702,0.000199,2]
[346302473,1734880251915,-391.71796702,0.000199,2]
[346302474,1734880251924,-391.71796702,0.000199,2]
[346302475,1734880251933,-391.71796702,0.000199,2]
[346302476,1734880251943,-391.71796702,0.000199,2]
[346302477,1734880251952,-391.71796702,0.000199,2]
[346302478,1734880251961,-391.71796702,0.000199,2]
[346302479,1734880251971,-391.71796702,0.000199,2]
[346302480,1734880251981,-391.71796702,0.000199,2]
[346302481,1734880251990,-391.71796702,0.000199,2]
[346302482,1734880251999,-391.71796702,0.000199,2]
[346302483,1734880252009,-391.71796702,0.000199,2]
[346302484,1734880252018,-391.71796702,0.000199,2]
[346302485,1734880252028,-391.71796702,0.000199,2]
[346302486,1734880252038,-391.71796702,0.000199,2]
[346302487,1734880252047,-391.71796702,0.000199,2]
[346302488,1734880252057,-391.71796702,0.000199,2]
[346302489,1734880252067,-391.71,0.000199,2]
[346302490,1734880252077,-587.57695053,0.000199,2]
[346302491,1734880252086,-587.57695053,0.000199,2]
[346302492,1734880252098,-587.57695053,0.000199,2]
[346302493,1734880252107,-587.57695053,0.000199,2]
[346302494,1734880252116,-587.57695053,0.000199,2]
[346302495,1734880252126,-587.57695053,0.000199,2]
[346302496,1734880252135,-587.57695053,0.000199,2]
[346302497,1734880252144,-587.57695053,0.000199,2]
[346302498,1734880252153,-587.57695053,0.000199,2]
[346302499,1734880252162,-587.57695053,0.000199,2]
[346302500,1734880252172,-587.57695053,0.000199,2]
[346302501,1734880252181,-587.57695053,0.000199,2]
[346302502,1734880252191,-587.57695053,0.000199,2]
[346302503,1734880252201,-587.57695053,0.000199,2]
[346302504,1734880252211,-587.57695053,0.000199,2]
[346302505,1734880252220,-587.57695053,0.000199,2]
[346302506,1734880252230,-587.57695053,0.000199,2]
[346302507,1734880252239,-587.57695053,0.000199,2]
[346302508,1734880252249,-587.57695053,0.000199,2]
[346302509,1734880252258,-587.57,0.000199,2]
[346302510,1734880252267,-119244.59718929,0.000199,2]
[346302511,1734880252277,-369.72210271,0.000199,2]
[346302512,1734880252286,-1148.28509313,0.000199,2]
[346302513,1734880252296,-840.35956476,0.000199,2]
[346302514,1734880252305,-2345.0,0.000199,2]
[346302515,1734880252314,-150.0,0.00019901,2]
[346302516,1734880252324,-150.0,0.00019904,2]
[346302517,1734880252334,-150.0,0.00019905,2]
[346302518,1734880252348,-150.0,0.00019908,2]
[346302519,1734880252358,-1500.0,0.00019909,2]
[346302520,1734880252367,-150.0,0.00019911,2]
[346302521,1734880252377,-150.0,0.00019911,2]
[346302522,1734880252388,-150.0,0.00019911,2]
[346302523,1734880252399,-150.0,0.00019913,2]
[346302524,1734880252408,-1500.0,0.00019915,2]
[346302525,1734880252418,-150.0,0.00019915,2]
[346302526,1734880252428,-150.0,0.00019916,2]
[346302527,1734880252438,-150.0,0.00019917,2]
[346302528,1734880252448,-150.0,0.00019925,2]
[346302529,1734880252459,-150.0,0.00019926,2]
[346302530,1734880252477,-150.0,0.0001993,2]
[346302531,1734880252489,-150.0,0.00019933,2]
[346302532,1734880252499,-150.0,0.00019934,2]
[346302533,1734880252510,-1500.0,0.00019935,2]
[346302534,1734880252520,-1500.0,0.00019936,2]
[346302535,1734880252529,-300.0,0.00019937,2]
[346302536,1734880252539,-150.0,0.00019944,2]
[346302537,1734880252549,-150.0,0.00019944,2]
[346302538,1734880252559,-1500.0,0.00019948,2]
[346302539,1734880252568,-150.0,0.00019948,2]
[346302540,1734880252578,-150.0,0.0001995,2]
[346302541,1734880252587,-150.0,0.0001995,2]
[346302542,1734880252603,-150.0,0.00019951,2]
[346302543,1734880252612,-516.85589827,0.00019954,2]
[346302544,1734880252623,-150.0,0.00019955,2]
[346302545,1734880252633,-150.0,0.00019966,2]
[346302546,1734880252644,-552.17852518,0.0001997,2]
[346302547,1734880252654,-500.0,0.00019973,2]
[346302548,1734880252664,-235.21062701,0.00019973,2]
[346302549,1734880252674,-500.0,0.00019973,2]
[346302550,1734880252684,-159.71631024,0.00019973,2]
[346302551,1734880252693,-500.0,0.00019973,2]
[346302552,1734880252703,-500.0,0.00019973,2]
[346302553,1734880252713,-500.0,0.00019973,2]
[346302554,1734880252723,-504.82459546,0.00019973,2]
[346302555,1734880252734,-500.20297702,0.00019973,2]
[346302556,1734880252744,-204.71391,0.00019974,2]
[346302557,1734880252753,-150.0,0.00019976,2]
[346302558,1734880252763,-150.0,0.00019977,2]
[346302559,1734880252773,-150.0,0.00019977,2]
[346302560,1734880252784,-646.34,0.00019979,2]
[346302561,1734880252794,-1949.65,0.00019979,2]
[346302562,1734880252803,-25970.60718337,0.0001998,2]
[346302563,1734880252813,-1080.450673,0.0001998,2]
[346302564,1734880252823,-150.0,0.00019981,2]
[346302565,1734880252833,-150.0,0.00019983,2]
[346302566,1734880252844,-198.01,0.00019985,2]
[346302567,1734880252854,-151.0,0.00019985,2]
[346302568,1734880252864,-151.0,0.00019985,2]
[346302569,1734880252874,-151.0,0.00019985,2]
[346302570,1734880252883,-151.0,0.00019985,2]
[346302571,1734880252893,-151.0,0.00019985,2]
[346302572,1734880252903,-151.0,0.00019985,2]
[346302573,1734880252913,-151.0,0.00019985,2]
[346302574,1734880252922,-151.0,0.00019985,2]
[346302575,1734880252932,-151.0,0.00019985,2]
[346302576,1734880252942,-151.0,0.00019985,2]
[346302577,1734880252951,-153.67,0.00019985,2]
[346302578,1734880252960,-262.81,0.00019985,2]
[346302579,1734880252970,-442.54290131,0.0001999,2]
[346302580,1734880252979,-150.0,0.00019991,2]
[346302581,1734880252989,-1500.0,0.00019992,2]
[346302582,1734880252998,-735.0497779,0.00019996,2]
[346302583,1734880253008,-648.8765451,0.00019996,2]
[346302584,1734880253018,-562.7033122,0.00019996,2]
[346302585,1734880253028,-476.5300794,0.00019996,2]
[346302586,1734880253037,-390.3568465,0.00019996,2]
[346302587,1734880253047,-304.1836137,0.00019996,2]
[346302588,1734880253056,-567.8172812,0.00019996,2]
[346302589,1734880253065,-501.2494755,0.00019996,2]
[346302590,1734880253075,-434.6816698,0.00019996,2]
[346302591,1734880253084,-368.1138641,0.00019996,2]
[346302592,1734880253095,-301.5460584,0.00019996,2]
[346302593,1734880253104,-234.9782528,0.00019996,2]
[346302594,1734880253114,-1265.3033978,0.00019996,2]
[346302595,1734880253124,-1116.9661184,0.00019996,2]
[346302596,1734880253133,-968.6288389,0.00019996,2]
[346302597,1734880253143,-820.2915595,0.00019996,2]
[346302598,1734880253153,-671.95428,0.00019996,2]
[346302599,1734880253163,-523.6170006,0.00019996,2]
[346302600,1734880253172,-2066.8211801,0.00019996,2]
[346302601,1734880253182,-1824.518321,0.00019996,2]
[346302602,1734880253192,-1582.2154619,0.00019996,2]
[346302603,1734880253201,-1339.9126027,0.00019996,2]
[346302604,1734880253211,-1097.6097436,0.00019996,2]
[346302605,1734880253220,-855.3068845,0.00019996,2]
[346302606,1734880253230,-150.0,0.00019997,2]
[346302607,1734880253239,-50000.0,0.00019998,7]
[346302608,1734880253249,-300.0,0.00019999,2]
[346302609,1734880253258,-666.0,0.00019999,2]
[346302610,1734880253268,-40550.0,0.00019999,2]
[346302611,1734880253278,-1949.65,0.00019999,2]
[346302612,1734880253288,-1949.65,0.00019999,2]
[346302613,1734880253297,-1949.65,0.00019999,2]
[346302614,1734880253307,-1949.65,0.00019999,2]
[346302615,1734880253316,-1949.65,0.00019999,2]
[346302616,1734880253326,-1949.65,0.00019999,2]
[346302617,1734880253336,-1949.65,0.00019999,2]
[346302618,1734880253346,-1949.65,0.00019999,2]
[346302619,1734880253356,-1949.65,0.00019999,2]
[346302620,1734880253366,-1949.65,0.00019999,2]
[346302621,1734880253376,-1949.65,0.00019999,2]
[346302622,1734880253387,-1949.65,0.00019999,2]
[346302623,1734880253397,-1949.65,0.00019999,2]
[346302624,1734880253407,-1949.82,0.00019999,2]
[346302625,1734880253416,-205.89477281,0.00019999,2]
[346302626,1734880253426,-205.89477281,0.00019999,2]
[346302627,1734880253436,-205.89477281,0.00019999,2]
[346302628,1734880253445,-205.89477281,0.00019999,2]
[346302629,1734880253455,-205.89477281,0.00019999,2]
[346302630,1734880253466,-205.89477281,0.00019999,2]
[346302631,1734880253476,-205.89477281,0.00019999,2]
[346302632,1734880253485,-205.89477281,0.00019999,2]
[346302633,1734880253495,-205.89477281,0.00019999,2]
[346302634,1734880253504,-205.89477281,0.00019999,2]
[346302635,1734880253514,-205.89477281,0.00019999,2]
[346302636,1734880253524,-205.89477281,0.00019999,2]
[346302637,1734880253533,-205.89477281,0.00019999,2]
[346302638,1734880253543,-205.89477281,0.00019999,2]
[346302639,1734880253554,-205.89477281,0.00019999,2]
[346302640,1734880253563,-205.89477281,0.00019999,2]
[346302641,1734880253573,-205.89477281,0.00019999,2]
[346302642,1734880253582,-205.89477281,0.00019999,2]
[346302643,1734880253591,-205.89477281,0.00019999,2]
[346302644,1734880253601,-205.89477281,0.00019999,2]
[346302645,1734880253610,-205.89477281,0.00019999,2]
[346302646,1734880253619,-205.89477281,0.00019999,2]
[346302647,1734880253627,-205.89477281,0.00019999,2]
[346302648,1734880253637,-205.89477281,0.00019999,2]
[346302649,1734880253647,-205.89477281,0.00019999,2]
[346302650,1734880253656,-205.89477281,0.00019999,2]
[346302651,1734880253667,-205.89477281,0.00019999,2]
[346302652,1734880253676,-205.89477281,0.00019999,2]
[346302653,1734880253686,-205.89477281,0.00019999,2]
[346302654,1734880253695,-205.89477281,0.00019999,2]
[346302655,1734880253706,-205.89477281,0.00019999,2]
[346302656,1734880253715,-1866608.43539022,0.0002,3]
[346302657,1734880253724,-579.46241347,0.0002,2]
[346302658,1734880253734,-14663.41422711,0.0002,3]
[346302659,1734880253743,-23655277.33603833,0.0002,2]
[346302660,1734880253752,-1954.79088936,0.0002,2]
[346302661,1734880253761,-2771.80477259,0.0002,7]
[346302662,1734880253771,-11698.9608648,0.0002,2]
[346302663,1734880253780,-8026.13592569,0.0002,2]
[346302664,1734880253789,-2052.05070564,0.0002,2]
[346302665,1734880253799,-40954.59294647,0.0002,2]
[346302666,1734880253809,-811.98693779,0.0002,2]
[346302667,1734880253818,-5375.31,0.0002,2]
[346302668,1734880253828,-198.27,0.0002,2]
[346302669,1734880253838,-2000.0,0.0002,2]
[346302670,1734880253848,-15454.31567037,0.0002,2]
[346302671,1734880253858,-24677461.5201572,0.0002,2]
[346302672,1734880254358,-316.17101762,0.0002,2]
[346302673,1734880254370,-605.30966957,0.0002,2]
[346302674,1734880254382,-477.0,0.0002,2]
[346302675,1734880254397,-2646.23542809,0.0002,2]
[346302676,1734880254410,-8646.17842686,0.0002,2]
[346302677,1734880254431,-500.0,0.00019178,2]
[346302678,1734880254440,-231.2,0.00019178,2]
[346302679,1734880254455,-718.24273064,0.00019178,2]
[346302680,1734880254469,-1167.71726936,0.00019178,2]
[346302681,1734880254479,-11705.10658152,0.0002,2]
[346302682,1734880254490,-82084.01202643,0.0002,2]
[346302683,1734880254708,-500.0,0.00019178,2]
[346302684,1734880254718,-2117.16,0.00019452,2]
[346302685,1734880254727,-2117.16,0.00019726,2]
[346302686,1734880254737,-205.89477281,0.00019999,2]
[346302687,1734880254746,-205.89477281,0.00019999,2]
[346302688,1734880254756,-2017.69435648,0.0002,2]
[346302689,1734880254778,-2857.5,0.0002,2]
[346302690,1734880254789,-2389.99545,0.0002,2]
[346302691,1734880254813,-1641.64,0.0002,2]
[346302692,1734880255137,-365.13,0.0001937,2]
[346302693,1734880255147,-150.0,0.0001937,2]
[346302694,1734880255156,-150.0,0.0001937,2]
[346302695,1734880255165,-205.89477281,0.00019999,2]
[346302696,1734880255175,-205.89477281,0.00019999,2]
[346302697,1734880255184,-205.89477281,0.00019999,2]
[346302698,1734880255194,-205.89477281,0.00019999,2]
[346302699,1734880255203,-52938.93032362,0.0002,2]
[346302700,1734880255214,-648.56067809,0.0002,2]
[346302701,1734880255302,-500.0,0.00019178,2]
[346302702,1734880255311,-500.0,0.00019178,2]
[346302703,1734880255321,-205.89477281,0.00019999,2]
[346302704,1734880255330,-205.89477281,0.00019999,2]
[346302705,1734880255341,-3379.38555814,0.0002,2]
[346302706,1734880255437,-566636.47218376,0.0002,2]
[346302707,1734880255449,-521.56177382,0.0002,2]
[346302708,1734880255522,-9882.96048015,0.0002,2]
[346302709,1734880255534,-1019.96832561,0.0002,2]
[346302711,1734880279626,-500.0,0.00016164,2]
[346302712,1734880386326,-500.0,0.00016164,2]
[346302713,1734880440884,-450.0,0.00013,2]
[346302714,1734880440906,-50.0,0.00015,2]
[346302715,1734880451342,-450.0,0.00015,2]
[346302716,1734880451364,-50.0,0.00016164,2]
[346302717,1734880456229,250.0,0.0002,120]
[346302718,1734880510808,227.0,0.0002,120]
[346302719,1734880524199,1000.0,0.0002,120]
[346302720,1734880536289,160.81,0.00010137,2]
[346302721,1734881256509,4501.03766763,0.0001,2]
[346302724,1734881379201,1000.0,0.00012,12]
[346302740,1734881432444,-300.0,0.00012899,2]
[346302741,1734881432454,-220.41,0.000129,2]
[346302742,1734881432466,-927.87509313,0.000129,2]
[346302743,1734881432475,-840.35956476,0.000129,2]
[346302744,1734881432485,-756.76534261,0.000129,2]
[346302745,1734881432507,-1378.66431652,0.000129,2]
[346302746,1734881432518,-2312.0,0.000129,2]
[346302747,1734881432870,-623.44006736,0.000129,2]
[346302748,1734881433031,-14226.69894147,0.000129,2]
[346302760,1734881438239,-35500.00057385,0.000129,2]
[346302764,1734881438605,-41090.09644963,0.000129,2]
[346302765,1734881438615,-324.40277758,0.000129,2]
[346302766,1734881438624,-13668.0,0.00012959,2]
[346302767,1734881438634,-21563.0,0.00012959,2]
[346302768,1734881438643,-14673.0,0.00012959,2]
[346302769,1734881438653,-41008.0,0.00012959,2]
[346302770,1734881438663,-204.00476163,0.00012973,2]
[346302771,1734881438672,-406.94541668,0.00012973,2]
[346302772,1734881438682,-356.50210057,0.00012973,2]
[346302773,1734881438692,-500.0,0.00012973,2]
[346302774,1734881438702,-323.78760875,0.00012973,2]
[346302775,1734881438711,-500.0,0.00012973,2]
[346302776,1734881438720,-315.34314888,0.00012999,2]
[346302777,1734881438729,-465.2928701,0.00012999,2]
[346302778,1734881438739,-488.1166967,0.00012999,2]
[346302779,1734881438748,-500.0,0.00012999,2]
[346302780,1734881438758,-500.0,0.00012999,2]
[346302781,1734881438771,-638.96251992,0.00012999,2]
[346302782,1734881438780,-500.0,0.00012999,2]
[346302783,1734881438790,-350.0,0.00012999,2]
[346302784,1734881438799,-251.69469445,0.00012999,2]
[346302785,1734881438810,-609.34278563,0.00012999,2]
[346302786,1734881438819,-500.0,0.00012999,2]
[346302787,1734881438828,-500.0,0.00012999,2]
[346302788,1734881438839,-500.0,0.00012999,2]
[346302789,1734881438849,-500.0,0.00012999,2]
[346302790,1734881438859,-500.0,0.00012999,2]
[346302791,1734881438868,-500.0,0.00012999,2]
[346302792,1734881438878,-228.51097409,0.00012999,2]
[346302793,1734881438888,-542.08530019,0.00012999,2]
[346302794,1734881438898,-514.40777698,0.00012999,2]
[346302795,1734881438908,-202.21581825,0.00012999,2]
[346302796,1734881438917,-202.21581825,0.00012999,2]